bitfinex/quotes_BTCUSD_20260103
["timestamp","ask_amount","ask_price","bid_price","bid_amount"]
[1767479033524,0.0001518,90633.0,90620.0,0.3246024]
[1767479033703,0.0001518,90633.0,90621.0,0.04558174]
[1767479036217,0.0001518,90633.0,90624.0,0.04558174]
[1767479036917,0.0001518,90633.0,90623.0,0.31356731]
[1767479039194,0.0001518,90633.0,90624.0,0.04558174]
[1767479041073,0.0001518,90633.0,90624.0,0.04529471]
[1767479041590,0.0001518,90633.0,90620.0,0.31356731]
[1767479041759,0.00021888,90633.0,90620.0,0.31356731]
[1767479043894,0.00021888,90633.0,90620.0,0.36110069]
[1767479044230,0.00021888,90633.0,90621.0,0.04753338]
[1767479045234,0.00021888,90633.0,90623.0,0.31356731]
[1767479046101,0.02208,90640.0,90628.0,0.04753338]
[1767479046301,0.02208,90640.0,90630.0,0.31356731]
[1767479047059,0.02208,90640.0,90630.0,0.36110069]
[1767479048384,0.02208,90640.0,90630.0,0.04753338]
[1767479049567,0.02208,90640.0,90620.0,0.36110069]
[1767479049804,0.04660001,90640.0,90620.0,0.37220286]
[1767479049986,0.02452001,90639.0,90620.0,0.37220286]
[1767479050579,0.02452001,90639.0,90620.0,0.36116777]
[1767479050900,0.02452001,90639.0,90620.0,0.37220286]
[1767479051812,0.02452001,90639.0,90621.0,0.11374283]
[1767479051972,0.02452001,90639.0,90623.0,0.01103472]
[1767479052172,0.02208,90640.0,90624.0,0.05856798]
[1767479053104,0.02452001,90639.0,90622.0,0.01103484]
[1767479053323,0.02452001,90639.0,90623.0,0.01103472]
[1767479053524,0.02452001,90639.0,90622.0,0.01103484]
[1767479053762,0.02452001,90639.0,90622.0,0.06580847]
[1767479053928,0.02452001,90639.0,90624.0,0.0110346]
[1767479054130,0.02452001,90639.0,90629.0,0.31356731]
[1767479054389,0.02208,90640.0,90629.0,0.31356731]
[1767479054723,0.02208,90640.0,90623.0,0.0585681]
[1767479054933,0.02208,90640.0,90630.0,0.31356731]
[1767479055133,0.02208,90640.0,90630.0,0.31352333]
[1767479055319,0.04660001,90640.0,90630.0,0.31352333]
[1767479055719,0.02208,90640.0,90631.0,0.04753338]
[1767479056772,0.02208,90640.0,90630.0,0.3132363]
[1767479057478,0.02452001,90639.0,90630.0,0.3132363]
[1767479057775,0.02208,90640.0,90630.0,0.3132363]
[1767479058126,0.02208,90640.0,90631.0,0.04753338]
[1767479058406,0.02208,90640.0,90631.0,0.04748939]
[1767479060882,0.02208,90640.0,90621.0,0.04753338]
[1767479060883,0.10703545,90640.0,90621.0,0.04753338]
[1767479061084,0.0110329,90638.0,90621.0,0.04753338]
[1767479061288,0.05187204,90640.0,90621.0,0.04753338]
[1767479061289,0.08666267,90640.0,90621.0,0.04753338]
[1767479061493,0.07563002,90640.0,90621.0,0.04753338]
[1767479062081,0.08666267,90640.0,90621.0,0.04753338]
[1767479062282,0.06290469,90640.0,90621.0,0.04753338]
[1767479062981,0.05187204,90640.0,90621.0,0.04753338]
[1767479063329,0.06290469,90640.0,90621.0,0.04753338]
[1767479065268,0.05187204,90640.0,90621.0,0.04753338]
[1767479065789,0.06290469,90640.0,90621.0,0.04753338]
[1767479065985,0.024564,90639.0,90620.0,0.33571439]
[1767479066232,0.024564,90638.0,90620.0,0.33571439]
[1767479068775,0.02375798,90639.0,90621.0,0.04753338]
[1767479068977,0.02208,90638.0,90629.0,0.04753338]
[1767479069745,0.02208,90638.0,90629.0,0.04724635]
[1767479074084,0.02208,90638.0,90621.0,0.04957311]
[1767479074289,0.02208,90638.0,90629.0,0.04957311]
[1767479076824,0.02208,90640.0,90638.0,0.000999]
[1767479077033,0.04693103,90639.0,90628.0,0.31356731]
[1767479077272,0.07075562,90639.0,90628.0,0.31356731]
[1767479077469,0.02382459,90638.0,90628.0,0.31356731]
[1767479077676,0.07075562,90639.0,90628.0,0.31356731]
[1767479078083,0.03597602,90638.0,90628.0,0.31356731]
[1767479078627,0.03597602,90638.0,90620.0,0.03318217]
[1767479078628,0.010999,90628.0,90620.0,0.02214708]
[1767479078825,0.01,90628.0,90620.0,0.02214708]
[1767479079032,0.01,90628.0,90621.0,0.04957311]
[1767479079245,0.02208,90637.0,90628.0,0.04957311]
[1767479079450,0.000999,90628.0,90621.0,0.04957311]
[1767479079648,0.02208,90637.0,90621.0,0.04957311]
[1767479080262,0.02198,90637.0,90621.0,0.04957311]
[1767479082189,0.04760468,90636.0,90620.0,0.02214708]
[1767479083570,0.04760468,90636.0,90620.0,0.03318217]
[1767479083930,0.04760468,90636.0,90621.0,0.01103496]
[1767479084408,0.04760468,90636.0,90620.0,0.02214708]
[1767479084765,0.02198,90637.0,90621.0,0.04723437]
[1767479085548,0.04571057,90636.0,90620.0,0.02214708]
[1767479086852,0.04571057,90636.0,90620.0,0.03318217]
[1767479087334,0.04571057,90636.0,90620.0,0.02214708]
[1767479089242,0.04571057,90636.0,90620.0,0.03318217]
[1767479089666,0.04571057,90636.0,90620.0,0.02214708]
[1767479090312,0.02198,90637.0,90621.0,0.04723437]
[1767479094520,0.04571057,90636.0,90620.0,0.03318217]
[1767479094725,0.04571057,90636.0,90620.0,0.02214708]
[1767479095135,0.02198,90637.0,90620.0,0.02214708]
[1767479095255,0.02198,90637.0,90621.0,0.04723437]
[1767479096133,0.02198,90637.0,90620.0,0.03318217]
[1767479096134,0.04571057,90636.0,90620.0,0.03318217]
[1767479096779,0.04571057,90636.0,90621.0,0.01103496]
[1767479097267,0.04571057,90636.0,90620.0,0.03318217]
[1767479097679,0.04571057,90636.0,90620.0,0.02214708]
[1767479097882,0.04571057,90636.0,90621.0,0.01103496]
[1767479098100,0.04571057,90636.0,90620.0,0.02214708]
[1767479098264,0.04571057,90636.0,90621.0,0.01103496]
[1767479099025,0.04571057,90636.0,90620.0,0.03318217]
[1767479099200,0.04571057,90636.0,90621.0,0.01103496]
[1767479099611,0.04571057,90636.0,90620.0,0.03318217]
[1767479099813,0.04571057,90636.0,90621.0,0.01103496]
[1767479100204,4.004e-05,90643.0,90625.0,0.01103448]
[1767479100404,0.02976958,90646.0,90621.0,0.01103496]
[1767479100405,0.0959601,90648.0,90636.0,0.05619009]
[1767479100751,0.03485021,90647.0,90636.0,0.01]
[1767479100925,0.05783562,90644.0,90636.0,0.01]
[1767479101064,0.01103204,90645.0,90626.0,0.04519109]
[1767479101065,0.08165416,90643.0,90626.0,0.04519109]
[1767479101280,0.000287,90626.0,90620.0,0.04525817]
[1767479101677,0.00021815,90626.0,90621.0,0.04519109]
[1767479101881,0.06462089,90638.0,90621.0,0.04509109]
[1767479102082,0.04080248,90638.0,90621.0,0.04509109]
[1767479102277,0.02976958,90638.0,90621.0,0.04509109]
[1767479102768,0.02976958,90640.0,90621.0,0.04509109]
[1767479102952,0.02976958,90639.0,90621.0,0.04509109]
[1767479103292,0.02976958,90640.0,90621.0,0.04509109]
[1767479103548,0.02208,90639.0,90621.0,0.04509109]
[1767479106264,0.04680346,90638.0,90620.0,6.708e-05]
[1767479106490,0.04680346,90637.0,90620.0,6.708e-05]
[1767479107820,0.06888346,90636.0,90620.0,6.708e-05]
[1767479107969,0.07062187,90635.0,90620.0,6.708e-05]
[1767479109327,0.07062187,90635.0,90623.0,0.04519109]
[1767479109328,0.02381841,90635.0,90623.0,0.04519109]
[1767479109479,0.02208,90638.0,90623.0,0.04519109]
[1767479109683,0.02208,90638.0,90623.0,0.05622581]
[1767479109953,0.02208,90638.0,90623.0,0.04519109]
[1767479110126,0.02208,90638.0,90623.0,0.05622581]
[1767479110734,0.02976958,90646.0,90620.0,0.36868333]
[1767479110735,0.02976958,90646.0,90638.0,0.01]
[1767479110948,0.02208,90647.0,90639.0,0.04519109]
[1767479111091,0.02208,90647.0,90639.0,0.04419209]
[1767479111304,0.02208,90647.0,90638.0,0.01]
[1767479111505,0.02208,90647.0,90634.0,0.04519109]
[1767479111933,0.06878346,90647.0,90629.0,0.01103399]
[1767479112110,0.04680346,90646.0,90629.0,0.01103399]
[1767479112454,0.04680346,90646.0,90628.0,0.31344122]
[1767479112764,0.04680346,90646.0,90628.0,0.01103411]
[1767479112932,0.04680346,90646.0,90627.0,0.01103423]
[1767479113132,0.04680346,90646.0,90628.0,0.01103411]
[1767479113334,0.04680346,90646.0,90628.0,0.06620438]
[1767479113543,0.04680346,90646.0,90629.0,0.01103399]
[1767479113790,0.04680346,90646.0,90630.0,0.01103387]
[1767479114192,0.04680346,90646.0,90629.0,0.01103399]
[1767479114421,0.04680346,90646.0,90628.0,0.0562252]
[1767479114619,0.04680346,90646.0,90629.0,0.01103399]
[1767479115417,0.04680346,90646.0,90629.0,0.01074696]
[1767479115574,0.04680346,90646.0,90630.0,0.01103387]
[1767479115775,0.04680346,90646.0,90629.0,0.04519109]
[1767479116823,0.02198,90647.0,90629.0,0.04519109]
[1767479122454,0.04680346,90646.0,90627.0,0.01103423]
[1767479122654,0.04680346,90646.0,90626.0,0.01103436]
[1767479123074,0.04680346,90646.0,90624.0,0.06620715]
[1767479123275,0.04680346,90646.0,90626.0,0.01103436]
[1767479123871,0.04680346,90646.0,90627.0,0.01103423]
[1767479125245,0.04680346,90646.0,90625.0,0.01103448]
[1767479125419,0.04680346,90646.0,90626.0,0.01103436]
[1767479125841,0.02198,90647.0,90627.0,0.04519109]
[1767479126464,0.02198,90647.0,90627.0,0.05622532]
[1767479126622,0.02198,90647.0,90627.0,0.04519109]
[1767479127143,0.02198,90647.0,90629.0,0.04519109]
[1767479129801,0.02198,90647.0,90629.0,0.05593805]
[1767479130384,0.04700043,90646.0,90629.0,0.01103399]
[1767479131421,0.04700043,90646.0,90629.0,0.05732233]
[1767479132475,0.0001518,90651.0,90632.0,0.01103363]
[1767479132476,0.04870477,90651.0,90632.0,0.01103363]
[1767479132772,0.02208,90646.0,90633.0,0.04765274]
[1767479133726,0.02208,90646.0,90630.0,0.32447509]
[1767479134630,0.07063297,90646.0,90631.0,0.01103375]
[1767479135238,0.07063297,90646.0,90630.0,0.32447509]
[1767479135440,0.07063297,90646.0,90631.0,0.01103375]
[1767479135703,0.07063297,90646.0,90630.0,0.32447509]
[1767479136330,0.02208,90646.0,90631.0,0.01103375]
[1767479136553,0.02208,90647.0,90631.0,0.04765274]
[1767479136977,0.02208,90647.0,90632.0,0.01103363]
[1767479137173,0.02208,90647.0,90633.0,0.04765274]
[1767479137452,0.04855297,90646.0,90632.0,0.01103363]
[1767479137672,0.04855297,90645.0,90632.0,0.01103363]
[1767479138319,0.04855297,90645.0,90630.0,0.32447509]
[1767479138944,0.04855297,90645.0,90630.0,0.31344122]
[1767479140819,0.04855297,90645.0,90630.0,0.32447509]
[1767479141797,0.04855297,90645.0,90630.0,0.31344122]
[1767479141926,0.04855297,90645.0,90630.0,0.32447509]
[1767479142579,0.04855297,90645.0,90630.0,0.01103387]
[1767479143270,0.04855297,90645.0,90630.0,0.32447509]
[1767479143419,0.04855297,90645.0,90630.0,0.31344122]
[1767479144535,0.04855297,90645.0,90630.0,0.31336572]
[1767479145162,0.02380246,90646.0,90631.0,0.04765274]
[1767479145366,0.02208,90647.0,90631.0,0.04765274]
[1767479146229,0.04855297,90643.0,90621.0,0.02208]
[1767479146462,0.05958526,90643.0,90630.0,0.23011378]
[1767479146648,0.03483487,90642.0,90630.0,0.31336572]
[1767479146849,0.01103241,90642.0,90626.0,0.04765274]
[1767479147193,0.03483475,90643.0,90626.0,0.04765274]
[1767479147347,0.0348345,90645.0,90626.0,0.04765274]
[1767479148485,0.0110335,90633.0,90620.0,0.14976708]
[1767479148641,0.01103375,90631.0,90620.0,0.14976708]
[1767479148837,0.01103387,90630.0,90620.0,0.14976708]
[1767479149047,0.01103375,90631.0,90620.0,0.14976708]
[1767479149251,0.01103363,90632.0,90620.0,0.14976708]
[1767479149455,0.0110335,90633.0,90620.0,0.14976708]
[1767479149770,0.03311314,90636.0,90620.0,0.14966708]
[1767479150169,0.02208,90636.0,90620.0,0.14966708]
[1767479151154,0.03311314,90636.0,90620.0,0.4630328]
[1767479151593,0.01103326,90635.0,90620.0,0.4630328]
[1767479151937,0.03311314,90636.0,90620.0,0.31336572]
[1767479152513,0.02208,90636.0,90620.0,0.31336572]
[1767479152864,0.02208,90636.0,90621.0,0.04765274]
[1767479153835,0.31336572,90631.0,90621.0,0.04765274]
[1767479154037,0.02208,90636.0,90621.0,0.04765274]
[1767479154211,0.0110335,90633.0,90621.0,0.04765274]
[1767479154498,0.0110335,90633.0,90615.0,0.02208]
[1767479154700,0.01103363,90632.0,90615.0,0.02208]
[1767479155498,0.0111242,90633.0,90615.0,0.02208]
[1767479155704,0.0111242,90633.0,90616.0,0.04765274]
[1767479157729,9.07e-05,90633.0,90616.0,0.04765274]
[1767479158137,0.02208,90636.0,90628.0,0.04765274]
[1767479158342,0.02208,90636.0,90628.0,0.04736571]
[1767479167411,0.01103168,90648.0,90626.0,0.31336572]
[1767479167615,0.02208,90643.0,90636.0,0.010999]
[1767479167745,0.02208,90647.0,90637.0,0.04635225]
[1767479168362,0.02198,90647.0,90637.0,0.04635225]
[1767479168967,0.0237976,90649.0,90637.0,0.04635225]
[1767479169185,0.02208,90648.0,90643.0,0.04635225]
[1767479169580,0.02208,90648.0,90631.0,0.04635225]
[1767479170783,0.04602889,90647.0,90630.0,0.31336572]
[1767479171115,0.04602889,90646.0,90630.0,0.31336572]
[1767479172732,0.04602889,90645.0,90630.0,0.31336572]
[1767479175309,0.0237976,90647.0,90631.0,0.04635225]
[1767479175504,0.02208,90648.0,90631.0,0.04635225]
[1767479178712,0.04602889,90647.0,90630.0,0.31336572]
[1767479179120,0.06982649,90647.0,90630.0,0.31336572]
[1767479179807,0.04602889,90646.0,90630.0,0.31336572]
[1767479181157,0.04602889,90646.0,90630.0,0.32439959]
[1767479181363,0.0237976,90647.0,90631.0,0.057386]
[1767479181570,0.02208,90648.0,90631.0,0.057386]
[1767479182481,0.02208,90648.0,90631.0,0.04635225]
[1767479185309,0.02208,90648.0,90633.0,0.04635225]
[1767479186424,0.02208,90648.0,90633.0,0.05738575]
[1767479186641,0.02208,90648.0,90633.0,0.04635225]
[1767479188926,0.02208,90648.0,90633.0,0.05738575]
[1767479189094,0.02208,90648.0,90633.0,0.04635225]
[1767479193541,0.0001518,90651.0,90633.0,0.04635225]
[1767479193752,0.09926439,90685.0,90633.0,0.04635225]
[1767479193753,0.0616921,90680.0,90669.0,0.04506247]
[1767479193951,0.0616921,90680.0,90660.0,0.04506247]
[1767479193952,0.13246568,90674.0,90660.0,0.04506247]
[1767479194128,0.39112073,90680.0,90634.0,0.02976958]
[1767479194129,0.31336572,90670.0,90651.0,0.02208]
[1767479194264,0.04582291,90672.0,90652.0,0.01103119]
[1767479194467,0.04582291,90672.0,90655.0,0.01103083]
[1767479194674,0.04582291,90672.0,90651.0,0.02208]
[1767479194874,0.04618066,90672.0,90651.0,0.02208]
[1767479195114,0.04582291,90669.0,90651.0,0.02198]
[1767479195322,0.04582291,90669.0,90651.0,0.02169297]
[1767479195704,0.04582291,90669.0,90652.0,0.01103119]
[1767479196190,0.04582291,90669.0,90651.0,0.03272428]
[1767479196403,0.04582291,90669.0,90659.0,0.31336572]
[1767479196778,0.04582291,90669.0,90654.0,0.01103095]
[1767479196920,0.04582291,90669.0,90655.0,0.01103083]
[1767479197137,0.04582291,90669.0,90654.0,0.01103095]
[1767479197345,0.02208,90670.0,90655.0,0.0560933]
[1767479197752,0.02208,90670.0,90656.0,0.0110307]
[1767479197958,0.04582291,90669.0,90655.0,0.01103083]
[1767479198476,0.02208,90670.0,90656.0,0.0110307]
[1767479199254,0.00035775,90672.0,90656.0,0.0110307]
[1767479199457,0.02243775,90672.0,90656.0,0.0110307]
[1767479199655,0.02243775,90672.0,90657.0,0.04506247]
[1767479199866,0.02243775,90672.0,90657.0,0.05609305]
[1767479200063,0.02243775,90672.0,90659.0,0.04506247]
[1767479200482,0.00035775,90672.0,90661.0,0.04506247]
[1767479200688,0.02243775,90672.0,90661.0,0.04506247]
[1767479201336,0.02243775,90672.0,90660.0,0.31336572]
[1767479201337,0.0319321,90680.0,90665.0,0.04506247]
[1767479201611,0.0222318,90688.0,90672.0,0.000999]
[1767479201808,0.0222318,90688.0,90670.0,0.31336572]
[1767479201809,0.02208,90687.0,90670.0,0.31336572]
[1767479202030,0.02208,90687.0,90670.0,0.31347296]
[1767479202248,0.02208,90687.0,90670.0,0.35853543]
[1767479202422,0.02198,90687.0,90670.0,0.35853543]
[1767479203016,0.02198,90687.0,90671.0,0.04506247]
[1767479203857,0.0001518,90688.0,90671.0,0.04506247]
[1767479204265,0.01102693,90687.0,90671.0,0.04506247]
[1767479204432,0.01117861,90688.0,90671.0,0.04506247]
[1767479204636,0.0001518,90688.0,90671.0,0.04506247]
[1767479205456,0.0001518,90688.0,90671.0,0.05609135]
[1767479205656,0.0001518,90688.0,90671.0,0.04506247]
[1767479205883,0.0001518,90688.0,90671.0,0.05609135]
[1767479206086,0.0001518,90688.0,90671.0,0.01102888]
[1767479206290,0.04582291,90687.0,90671.0,0.01102888]
[1767479206656,0.04582291,90687.0,90670.0,0.01113624]
[1767479206824,0.04582291,90687.0,90670.0,0.00010724]
[1767479207052,0.04582291,90687.0,90672.0,0.01102876]
[1767479207254,0.04582291,90687.0,90670.0,0.01113624]
[1767479207255,0.04582291,90687.0,90671.0,0.01102888]
[1767479207778,0.04582291,90687.0,90670.0,0.3242311]
[1767479208043,0.0001518,90688.0,90671.0,0.04477542]
[1767479208455,0.0001518,90688.0,90671.0,0.04448839]
[1767479208662,0.0001518,90688.0,90671.0,0.05551727]
[1767479209334,0.0001518,90688.0,90673.0,0.04506247]
[1767479209797,0.0001518,90688.0,90673.0,0.05609111]
[1767479209999,0.0001518,90688.0,90677.0,0.01636241]
[1767479210390,0.0001518,90688.0,90679.0,0.02367378]
[1767479210592,0.0001518,90688.0,90680.0,0.02367378]
[1767479210939,0.0001518,90688.0,90679.0,0.01102791]
[1767479210940,0.0001518,90688.0,90678.0,0.01102803]
[1767479211328,8e-07,90688.0,90678.0,0.31309486]
[1767479211988,8e-07,90688.0,90670.0,0.00010724]
[1767479211989,0.000151,90678.0,90670.0,0.01113624]
[1767479212225,0.03261268,90691.0,90674.0,0.02352278]
[1767479212572,0.03261268,90691.0,90675.0,0.02352278]
[1767479215353,0.03261268,90691.0,90676.0,0.02269788]
[1767479215593,0.03261268,90691.0,90676.0,0.03372615]
[1767479215712,0.03261268,90691.0,90676.0,0.02269788]
[1767479215928,0.03261268,90691.0,90677.0,0.02269788]
[1767479216149,0.03261268,90691.0,90678.0,0.02269788]
[1767479216358,0.04582291,90690.0,90673.0,0.0551432]
[1767479216561,0.04582291,90690.0,90674.0,0.01102851]
[1767479216760,0.04582291,90690.0,90675.0,0.01102839]
[1767479217009,0.04582291,90690.0,90674.0,0.01102851]
[1767479217211,0.04582291,90690.0,90675.0,0.01102839]
[1767479217591,0.04582291,90690.0,90674.0,0.01102851]
[1767479217798,0.04582291,90690.0,90676.0,0.01102827]
[1767479217999,0.04582291,90690.0,90674.0,0.01102851]
[1767479218386,0.04582291,90690.0,90675.0,0.01102839]
[1767479218583,0.03261268,90691.0,90674.0,0.03372639]
[1767479218786,0.03261268,90691.0,90675.0,0.01102839]
[1767479219124,0.04582291,90690.0,90673.0,0.06617139]
[1767479219772,0.04582291,90690.0,90674.0,0.01102851]
[1767479219972,0.04582291,90690.0,90676.0,0.01102827]
[1767479220111,0.04582291,90690.0,90675.0,0.01102839]
[1767479220543,0.04582291,90690.0,90673.0,0.01102864]
[1767479220739,0.04582291,90690.0,90673.0,0.06617177]
[1767479220943,0.04582291,90690.0,90675.0,0.01102839]
[1767479221324,0.04582291,90690.0,90676.0,0.01074124]
[1767479221499,0.04582291,90690.0,90672.0,0.02208]
[1767479221716,0.04582291,90690.0,90670.0,0.00010724]
[1767479221717,0.04607689,90684.0,90670.0,0.00010724]
[1767479224423,0.01102681,90688.0,90670.0,0.04488512]
[1767479225226,0.01102669,90689.0,90670.0,0.04488512]
[1767479226273,0.05513317,90690.0,90670.0,0.04488512]
[1767479226274,0.01102657,90690.0,90670.0,0.04488512]
[1767479226899,0.01102681,90688.0,90670.0,0.04488512]
[1767479227206,0.05710358,90689.0,90670.0,0.04488512]
[1767479227451,0.04607689,90689.0,90670.0,0.00010724]
[1767479227668,0.05710358,90689.0,90670.0,0.00010724]
[1767479227815,0.04607689,90687.0,90670.0,0.00010724]
[1767479228681,0.05710382,90687.0,90670.0,0.00010724]
[1767479229082,0.04607689,90687.0,90670.0,0.00010724]
[1767479229881,0.01102706,90686.0,90670.0,0.00010724]
[1767479230060,0.05710382,90687.0,90670.0,0.00010724]
[1767479231625,0.04607689,90687.0,90670.0,0.00010724]
[1767479232142,0.04607689,90678.0,90670.0,0.00010724]
[1767479232370,0.04607689,90678.0,90669.0,0.02208]
[1767479232371,0.04607689,90671.0,90659.0,0.14966708]
[1767479232569,0.04618405,90671.0,90659.0,0.14966708]
[1767479233508,0.04607689,90669.0,90659.0,0.09966708]
[1767479233714,0.04607689,90669.0,90656.0,0.0001518]
[1767479234294,0.04607689,90669.0,90653.0,0.02203176]
[1767479234697,0.05710601,90669.0,90653.0,0.02203176]
[1767479234902,0.04607689,90667.0,90653.0,0.02203176]
[1767479235316,0.04607689,90662.0,90650.0,0.00050318]
[1767479235531,0.04607689,90662.0,90640.0,0.01103265]
[1767479235532,0.01103022,90660.0,90640.0,0.04776656]
[1767479235735,0.31309486,90660.0,90640.0,0.04776656]
[1767479235936,0.32412508,90660.0,90640.0,0.04776656]
[1767479236382,0.35917175,90660.0,90640.0,0.04776656]
[1767479236581,0.31309486,90650.0,90640.0,0.04776656]
[1767479238032,0.01103058,90657.0,90640.0,0.04776656]
[1767479238247,0.1324718,90760.0,90628.0,0.01103411]
[1767479238248,0.04607689,90649.0,90628.0,0.01103411]
[1767479238450,0.04607689,90649.0,90625.0,0.05880104]
[1767479238451,0.31309486,90640.0,90625.0,0.05880104]
[1767479238656,0.02208,90648.0,90640.0,0.000999]
[1767479238824,0.03311168,90648.0,90635.0,0.04426475]
[1767479239040,0.02208,90648.0,90635.0,0.04426475]
[1767479239445,0.0110307,90656.0,90635.0,0.04426475]
[1767479239647,0.01103107,90653.0,90635.0,0.0446225]
[1767479239808,0.01103095,90654.0,90635.0,0.0446225]
[1767479241066,0.01103107,90653.0,90635.0,0.0446225]
[1767479242013,0.01103131,90651.0,90635.0,0.0446225]
[1767479243137,0.01103143,90650.0,90635.0,0.00035775]
[1767479243324,0.0571082,90651.0,90635.0,0.00035775]
[1767479243809,0.04607689,90649.0,90635.0,0.00035775]
[1767479246155,0.02208,90648.0,90635.0,0.00035775]
[1767479247290,0.02208,90648.0,90636.0,0.04776656]
[1767479248426,0.02208,90648.0,90635.0,0.00035775]
[1767479249199,0.02208,90648.0,90635.0,0.04812431]
[1767479251673,0.06993317,90648.0,90635.0,0.00035775]
[1767479252578,0.04785317,90647.0,90635.0,0.00035775]
[1767479254591,0.02208,90648.0,90635.0,0.00035775]
[1767479255160,0.02208,90648.0,90635.0,0.04844141]
[1767479258196,0.02208,90648.0,90635.0,0.00035775]
[1767479258338,0.04785317,90647.0,90635.0,0.00035775]
[1767479259525,0.02208,90648.0,90635.0,0.00035775]
[1767479260196,0.04785317,90647.0,90635.0,0.00035775]
[1767479261869,0.02208,90648.0,90635.0,0.00035775]
[1767479262201,0.02208,90648.0,90636.0,0.04808366]
[1767479267568,0.04785317,90647.0,90635.0,0.00035775]
[1767479267734,0.02208,90648.0,90635.0,0.00035775]
[1767479268129,0.04785317,90647.0,90635.0,0.00035775]
[1767479269657,0.04785317,90646.0,90635.0,0.00035775]
[1767479270199,0.02382019,90647.0,90635.0,0.04844141]
[1767479270436,0.02208,90648.0,90635.0,0.04844141]
[1767479271366,0.02208,90648.0,90635.0,0.04815439]
[1767479274026,0.02208,90648.0,90635.0,7.073e-05]
[1767479274248,0.04785317,90647.0,90635.0,7.073e-05]
[1767479274640,0.07167336,90647.0,90635.0,7.073e-05]
[1767479274985,0.04785317,90646.0,90635.0,7.073e-05]
[1767479277495,0.02381972,90647.0,90635.0,7.3e-07]
[1767479277715,0.02208,90648.0,90635.0,7.3e-07]
[1767479277716,0.06993317,90648.0,90635.0,7.3e-07]
[1767479277902,0.02381937,90647.0,90635.0,7.3e-07]
[1767479278058,0.04785317,90646.0,90635.0,7.3e-07]
[1767479279083,0.02381937,90647.0,90635.0,7.3e-07]
[1767479279279,0.02208,90648.0,90635.0,7.3e-07]
[1767479279280,0.03311168,90648.0,90635.0,7.3e-07]
[1767479279485,0.0110318,90647.0,90635.0,7.3e-07]
[1767479279958,0.03311168,90648.0,90636.0,0.03244016]
[1767479280129,0.05693105,90648.0,90635.0,7.3e-07]
[1767479280353,0.05849773,90647.0,90635.0,7.3e-07]
[1767479280532,0.04746593,90644.0,90635.0,7.3e-07]
[1767479281342,0.02381986,90645.0,90635.0,7.3e-07]
[1767479281506,0.03485166,90647.0,90635.0,7.3e-07]
[1767479281708,0.36086522,90645.0,90635.0,7.3e-07]
[1767479282024,0.04746593,90644.0,90635.0,7.3e-07]
[1767479287202,0.04746593,90643.0,90635.0,7.3e-07]
[1767479293171,0.04746593,90641.0,90635.0,7.3e-07]
[1767479293399,0.04746593,90639.0,90635.0,7.3e-07]
[1767479293775,0.04746593,90637.0,90635.0,7.3e-07]
[1767479293974,0.04746593,90636.0,90635.0,7.3e-07]
[1767479294373,0.07128385,90636.0,90635.0,7.3e-07]
[1767479294698,0.04746593,90636.0,90635.0,7.3e-07]
[1767479301502,0.04746593,90638.0,90635.0,7.3e-07]
[1767479301957,0.04746593,90637.0,90635.0,7.3e-07]
[1767479302962,0.05849895,90637.0,90619.0,0.0001518]
[1767479303184,0.04746593,90629.0,90619.0,0.0002425]
[1767479303392,0.04739593,90629.0,90619.0,0.0002425]
[1767479303707,0.04739593,90629.0,90615.0,0.04408]
[1767479304246,0.31339929,90630.0,90615.0,0.04408]
[1767479304868,0.31339929,90630.0,90616.0,0.04894016]
[1767479310180,0.31339929,90630.0,90616.0,0.04865313]
[1767479315586,0.31339929,90630.0,90616.0,0.04860914]
[1767479316582,0.02208,90632.0,90616.0,0.04860914]
[1767479316780,0.31339929,90630.0,90616.0,0.04860914]
[1767479317963,0.04703908,90629.0,90612.0,0.01103606]
[1767479318177,0.31339929,90630.0,90612.0,0.06052741]
[1767479318291,0.02208,90632.0,90620.0,0.36289064]
[1767479318488,0.02208,90632.0,90615.0,0.0110357]
[1767479318743,0.02208,90632.0,90620.0,0.31339929]
[1767479321036,0.02208,90632.0,90620.0,0.36289064]
[1767479325325,0.02208,90632.0,90620.0,0.37392573]
[1767479325679,0.02208,90632.0,90620.0,0.36289064]
[1767479326913,0.02208,90632.0,90620.0,0.06052644]
[1767479327107,0.02208,90632.0,90620.0,0.04949135]
[1767479327300,0.02208,90632.0,90620.0,0.06052644]
[1767479327554,0.02208,90632.0,90620.0,0.04949135]
[1767479328869,0.02208,90632.0,90620.0,0.04920432]
[1767479333735,0.02208,90632.0,90620.0,0.0491589]
[1767479338503,0.02208,90632.0,90616.0,0.06052692]
[1767479339302,0.02208,90632.0,90616.0,0.04949135]
[1767479340184,0.02208,90632.0,90616.0,0.06052692]
[1767479340406,0.02208,90632.0,90616.0,0.04949135]
[1767479342027,0.04588253,90632.0,90616.0,0.04949135]
[1767479342229,0.04588253,90632.0,90616.0,0.04944738]
[1767479342530,0.05691616,90632.0,90616.0,0.04944738]
[1767479342753,0.04588253,90632.0,90616.0,0.04944738]
[1767479343141,0.04588253,90632.0,90606.0,0.05518387]
[1767479343142,0.0110346,90624.0,90607.0,0.02208]
[1767479343348,0.01,90616.0,90607.0,0.02208]
[1767479346897,0.01,90616.0,90607.0,0.03311667]
[1767479347294,0.01,90616.0,90607.0,0.02208]
[1767479347972,0.04994644,90621.0,90607.0,0.02208]
[1767479352080,0.04994644,90621.0,90601.0,0.0111892]
[1767479352306,0.04994644,90621.0,90602.0,0.01103728]
[1767479353119,0.04994644,90621.0,90603.0,0.01103716]
[1767479353664,0.04994644,90621.0,90602.0,0.01103728]
[1767479353988,0.04994644,90621.0,90603.0,0.01103716]
[1767479355832,0.02208,90622.0,90601.0,0.0002591]
[1767479355833,0.000999,90603.0,90601.0,0.0002591]
[1767479356111,0.01,90603.0,90601.0,0.00021513]
[1767479356268,0.04994644,90614.0,90601.0,0.00021513]
[1767479357254,0.36341557,90611.0,90601.0,0.00021513]
[1767479357459,0.04994644,90610.0,90601.0,0.00021513]
[1767479357664,0.04994644,90610.0,90601.0,1.3e-07]
[1767479360541,0.01103752,90600.0,90583.0,0.0001518]
[1767479360749,0.01,90594.0,90583.0,0.0001518]
[1767479360977,0.04994644,90595.0,90583.0,0.0001518]
[1767479361273,7.485e-05,90600.0,90583.0,0.0001518]
[1767479361274,0.05002129,90600.0,90583.0,0.0001518]
[1767479361679,0.05002129,90600.0,90583.0,5.18e-05]
[1767479362766,0.04994644,90599.0,90583.0,5.18e-05]
[1767479363550,0.06098408,90599.0,90583.0,5.18e-05]
[1767479363785,0.04994644,90595.0,90580.0,0.00023412]
[1767479364479,0.06098457,90595.0,90580.0,0.00023412]
[1767479364878,0.04994644,90595.0,90580.0,0.00023412]
[1767479371269,0.04544894,90593.0,90580.0,0.00023412]
[1767479373696,0.01103825,90594.0,90580.0,0.00023412]
[1767479373697,0.05620131,90591.0,90580.0,1.2e-07]
[1767479373825,0.04516269,90589.0,90580.0,1.2e-07]
[1767479374223,0.01103862,90591.0,90580.0,1.2e-07]
[1767479374224,0.01103947,90584.0,90580.0,1.2e-07]